fUST/lending_fUST_20241003
["ID","MTS","AMOUNT","RATE_DAILY","PERIOD"]
[339728553,1727904641122,-500.0,0.00013698,2]
[339728554,1727904641132,-500.0,0.00013698,2]
[339728555,1727904641141,-500.0,0.00013698,2]
[339728556,1727904641150,-500.0,0.00013698,2]
[339728557,1727904641159,-208.08597,0.00013698,2]
[339728558,1727904641169,-208.08597,0.00013698,2]
[339728559,1727904641178,-500.0,0.00013698,2]
[339728560,1727904641187,-500.0,0.00013698,2]
[339728561,1727904641197,-500.0,0.00013698,2]
[339728562,1727904641206,-208.08597,0.00013698,2]
[339728563,1727904641216,-500.0,0.00013698,2]
[339728564,1727904641225,-208.08597,0.00013698,2]
[339728565,1727904641234,-500.0,0.00013698,2]
[339728566,1727904641244,-500.0,0.00013698,2]
[339728567,1727904641253,-500.0,0.00013698,2]
[339728568,1727904641262,-500.0,0.00013698,2]
[339728569,1727904641271,-500.0,0.00013698,2]
[339728570,1727904641282,-500.0,0.00013698,5]
[339728571,1727904641291,-503.24335325,0.00013698,2]
[339728572,1727904641300,-929.81,0.00013698,2]
[339728573,1727904641311,-151.0,0.00013698,2]
[339728574,1727904641323,-500.0,0.00013698,2]
[339728575,1727904641335,-500.0,0.00013698,2]
[339728576,1727904641345,-500.0,0.00013698,2]
[339728577,1727904641356,-500.0,0.00013698,2]
[339728578,1727904641365,-500.0,0.00013698,2]
[339728579,1727904641374,-932.99,0.00013698,2]
[339728580,1727904641384,-500.0,0.00013698,2]
[339728581,1727904641393,-830.93,0.00013698,2]
[339728582,1727904641402,-500.0,0.00013698,2]
[339728583,1727904641412,-500.0,0.00013698,2]
[339728584,1727904641422,-500.0,0.00013698,2]
[339728585,1727904641432,-500.0,0.00013698,2]
[339728586,1727904641441,-341.00490525,0.00013698,2]
[339728587,1727904641451,-564.43,0.00013698,2]
[339728588,1727904641461,-500.0,0.00013698,2]
[339728589,1727904641471,-569.37,0.00013698,2]
[339728590,1727904641481,-500.0,0.00013698,2]
[339728591,1727904641491,-151.0,0.00013698,2]
[339728592,1727904641501,-500.0,0.00013698,2]
[339728593,1727904641511,-500.0,0.00013698,2]
[339728594,1727904641521,-530.71,0.00013698,2]
[339728595,1727904641531,-500.0,0.00013698,2]
[339728596,1727904641541,-500.0,0.00013698,2]
[339728597,1727904641551,-500.0,0.00013698,2]
[339728598,1727904641560,-912.56,0.00013698,2]
[339728599,1727904641570,-500.0,0.00013698,2]
[339728600,1727904641580,-500.0,0.00013698,2]
[339728601,1727904641589,-500.0,0.00013698,2]
[339728602,1727904641599,-500.0,0.00013698,2]
[339728603,1727904641608,-500.0,0.00013698,2]
[339728604,1727904641618,-500.0,0.00013698,2]
[339728605,1727904641627,-500.0,0.00013698,2]
[339728606,1727904641636,-500.0,0.00013698,2]
[339728607,1727904641646,-500.0,0.00013698,2]
[339728608,1727904641656,-778.02,0.00013698,2]
[339728609,1727904641665,-500.0,0.00013698,2]
[339728610,1727904641674,-500.0,0.00013698,2]
[339728611,1727904641683,-500.0,0.00013698,2]
[339728612,1727904641693,-500.0,0.00013698,2]
[339728613,1727904641702,-580.19,0.00013698,2]
[339728614,1727904641713,-500.0,0.00013698,2]
[339728615,1727904641722,-500.0,0.00013698,2]
[339728616,1727904641731,-500.0,0.00013698,2]
[339728617,1727904641740,-537.71,0.00013698,2]
[339728618,1727904641749,-500.0,0.00013698,2]
[339728619,1727904641758,-151.0,0.00013698,2]
[339728620,1727904641767,-500.0,0.00013698,2]
[339728621,1727904641776,-500.0,0.00013698,2]
[339728622,1727904641785,-500.0,0.00013698,2]
[339728623,1727904641795,-500.0,0.00013698,2]
[339728624,1727904641804,-500.0,0.00013698,2]
[339728625,1727904641813,-642.05060498,0.00013698,2]
[339728626,1727904641822,-500.0,0.00013698,2]
[339728627,1727904641831,-563.81,0.00013698,2]
[339728628,1727904641840,-500.0,0.00013698,2]
[339728629,1727904641849,-500.0,0.00013698,2]
[339728630,1727904641860,-500.0,0.00013698,2]
[339728631,1727904641869,-500.0,0.00013698,2]
[339728632,1727904641878,-500.0,0.00013698,2]
[339728633,1727904641887,-500.0,0.00013698,2]
[339728634,1727904641897,-500.0,0.00013698,2]
[339728635,1727904641906,-500.0,0.00013698,2]
[339728636,1727904641915,-500.0,0.00013698,2]
[339728637,1727904641924,-500.0,0.00013698,2]
[339728638,1727904641934,-500.0,0.00013698,2]
[339728639,1727904641944,-619.49,0.00013698,2]
[339728640,1727904641953,-500.0,0.00013698,2]
[339728641,1727904641963,-151.0,0.00013698,2]
[339728642,1727904641972,-151.0,0.00013698,2]
[339728643,1727904641981,-500.0,0.00013698,2]
[339728644,1727904641990,-668.27,0.00013698,2]
[339728645,1727904642000,-500.0,0.00013698,2]
[339728646,1727904642010,-1058.94,0.00013698,2]
[339728647,1727904642019,-500.0,0.00013698,2]
[339728648,1727904642029,-500.0,0.00013698,2]
[339728649,1727904642038,-208.04387666,0.00013698,2]
[339728650,1727904642048,-500.0,0.00013698,2]
[339728651,1727904642057,-500.0,0.00013698,2]
[339728652,1727904642066,-500.0,0.00013698,2]
[339728653,1727904642075,-955.86,0.00013698,2]
[339728654,1727904642084,-500.0,0.00013698,2]
[339728655,1727904642093,-500.0,0.00013698,2]
[339728656,1727904642102,-540.06,0.00013698,2]
[339728657,1727904642111,-580.77,0.00013698,2]
[339728658,1727904642121,-517.7,0.00013698,2]
[339728659,1727904642130,-500.0,0.00013698,2]
[339728660,1727904642140,-500.0,0.00013698,2]
[339728661,1727904642149,-500.0,0.00013698,2]
[339728662,1727904642160,-500.0,0.00013698,2]
[339728663,1727904642170,-500.0,0.00013698,2]
[339728664,1727904642179,-500.0,0.00013698,2]
[339728665,1727904642188,-500.0,0.00013698,2]
[339728666,1727904642197,-500.0,0.00013698,2]
[339728667,1727904642207,-509.48109642,0.00013698,2]
[339728668,1727904642221,-500.0,0.00013698,2]
[339728669,1727904642231,-500.0,0.00013698,2]
[339728670,1727904642240,-500.0,0.00013698,2]
[339728671,1727904642249,-747.05,0.00013698,2]
[339728672,1727904642260,-526.18,0.00013698,2]
[339728673,1727904642269,-904.54,0.00013698,2]
[339728674,1727904642278,-514.98117344,0.00013698,2]
[339728675,1727904642287,-500.0,0.00013698,2]
[339728676,1727904642296,-500.0,0.00013698,2]
[339728677,1727904642306,-500.0,0.00013698,2]
[339728678,1727904642314,-500.0,0.00013698,2]
[339728679,1727904642324,-500.0,0.00013698,2]
[339728680,1727904642333,-151.0,0.00013698,2]
[339728681,1727904642342,-500.0,0.00013698,2]
[339728682,1727904642351,-500.0,0.00013698,2]
[339728683,1727904642361,-573.4,0.00013698,2]
[339728684,1727904642370,-500.0,0.00013698,2]
[339728685,1727904642379,-500.0,0.00013698,2]
[339728686,1727904642388,-500.0,0.00013698,2]
[339728687,1727904642398,-151.0,0.00013698,2]
[339728688,1727904642407,-500.0,0.00013698,2]
[339728689,1727904642416,-500.0,0.00013698,2]
[339728690,1727904642425,-529.45,0.00013698,2]
[339728691,1727904642435,-626.78,0.00013698,2]
[339728692,1727904642444,-500.0,0.00013698,2]
[339728693,1727904642453,-500.0,0.00013698,2]
[339728694,1727904642463,-500.0,0.00013698,2]
[339728695,1727904642472,-500.0,0.00013698,2]
[339728696,1727904642481,-858.22,0.00013698,2]
[339728697,1727904642491,-151.0,0.00013698,2]
[339728698,1727904642500,-500.0,0.00013698,2]
[339728699,1727904642509,-500.0,0.00013698,2]
[339728700,1727904642519,-500.0,0.00013698,2]
[339728701,1727904642528,-519.94,0.00013698,2]
[339728702,1727904642537,-500.0,0.00013698,2]
[339728703,1727904642546,-528.37,0.00013698,2]
[339728704,1727904642555,-500.0,0.00013698,2]
[339728705,1727904642564,-500.0,0.00013698,2]
[339728706,1727904642574,-744.65,0.00013698,2]
[339728707,1727904642583,-500.0,0.00013698,2]
[339728708,1727904642592,-500.0,0.00013698,2]
[339728709,1727904642601,-750.27,0.00013698,2]
[339728710,1727904642610,-500.0,0.00013698,2]
[339728711,1727904642619,-500.0,0.00013698,2]
[339728712,1727904642628,-500.0,0.00013698,2]
[339728713,1727904642638,-500.0,0.00013698,2]
[339728714,1727904642647,-553.90903225,0.00013698,2]
[339728715,1727904642656,-500.0,0.00013698,2]
[339728716,1727904642665,-500.0,0.00013698,2]
[339728717,1727904642675,-500.0,0.00013698,2]
[339728718,1727904642685,-500.0,0.00013698,2]
[339728719,1727904642694,-1072.45,0.00013698,2]
[339728720,1727904642704,-500.0,0.00013698,2]
[339728721,1727904642715,-500.0,0.00013698,2]
[339728722,1727904642724,-500.0,0.00013698,2]
[339728723,1727904642734,-500.0,0.00013698,2]
[339728724,1727904642744,-500.0,0.00013698,2]
[339728725,1727904642754,-500.0,0.00013698,2]
[339728726,1727904642765,-500.0,0.00013698,2]
[339728727,1727904642776,-676.96,0.00013698,2]
[339728728,1727904642786,-500.0,0.00013698,2]
[339728729,1727904642796,-500.0,0.00013698,2]
[339728730,1727904642807,-500.0,0.00013698,2]
[339728731,1727904642817,-500.0,0.00013698,2]
[339728732,1727904642828,-500.0,0.00013698,2]
[339728733,1727904642839,-500.0,0.00013698,2]
[339728734,1727904642851,-500.0,0.00013698,2]
[339728735,1727904642869,-500.0,0.00013698,2]
[339728736,1727904642879,-500.0,0.00013698,2]
[339728737,1727904642890,-500.0,0.00013698,2]
[339728738,1727904642902,-500.0,0.00013698,2]
[339728739,1727904642914,-500.0,0.00013698,2]
[339728740,1727904642924,-1563.58,0.00013698,2]
[339728741,1727904642937,-585.91,0.00013698,2]
[339728742,1727904642950,-500.0,0.00013698,2]
[339728743,1727904642960,-151.0,0.00013698,2]
[339728744,1727904642969,-500.0,0.00013698,2]
[339728745,1727904642979,-500.0,0.00013698,2]
[339728746,1727904642988,-500.0,0.00013698,2]
[339728747,1727904642998,-500.0,0.00013698,2]
[339728748,1727904643007,-151.0,0.00013698,2]
[339728749,1727904643016,-546.25,0.00013698,2]
[339728750,1727904643025,-500.0,0.00013698,2]
[339728751,1727904643034,-500.0,0.00013698,2]
[339728752,1727904643043,-500.0,0.00013698,2]
[339728753,1727904643053,-500.0,0.00013698,2]
[339728754,1727904643062,-500.0,0.00013698,2]
[339728755,1727904643072,-494.3000156,0.00013698,2]
[339728756,1727904643081,-640.32,0.00013698,2]
[339728758,1727904643091,-500.0,0.00013698,2]
[339728759,1727904643100,-500.0,0.00013698,2]
[339728761,1727904643110,-500.0,0.00013698,2]
[339728763,1727904643119,-500.0,0.00013698,2]
[339728764,1727904643129,-526.82,0.00013698,2]
[339728766,1727904643139,-497.81104961,0.00013698,2]
[339728768,1727904643149,-500.0,0.00013698,2]
[339728770,1727904643158,-500.0,0.00013698,2]
[339728772,1727904643168,-500.0,0.00013698,2]
[339728773,1727904643178,-500.0,0.00013698,2]
[339728775,1727904643188,-500.0,0.00013698,2]
[339728777,1727904643198,-500.0,0.00013698,2]
[339728778,1727904643210,-105.57165428,0.00013698,2]
[339728779,1727904643254,-492.32751339,0.00013698,2]
[339728780,1727904643266,-594.47,0.00013698,2]
[339728781,1727904643277,-500.0,0.00013698,2]
[339728782,1727904643287,-1164.44611271,0.00013698,2]
[339728787,1727904643515,-617.66388729,0.00013698,2]
[339728789,1727904643525,-43.05611271,0.00013698,2]
[339728808,1727904647091,-456.94388729,0.00013698,2]
[339728809,1727904647101,-686.09,0.00013698,2]
[339728810,1727904647110,-971.57,0.00013698,2]
[339728811,1727904647120,-523.47,0.00013698,2]
[339728812,1727904647129,-500.0,0.00013698,2]
[339728813,1727904647139,-310.25361511,0.00013698,2]
[339728814,1727904647148,-500.0,0.00013698,2]
[339728815,1727904647158,-603.35632666,0.00013698,2]
[339728816,1727904647168,-500.0,0.00013698,2]
[339728817,1727904647177,-500.0,0.00013698,2]
[339728818,1727904647187,-500.0,0.00013698,2]
[339728819,1727904647198,-487.75710093,0.00013698,2]
[339728820,1727904647208,-500.0,0.00013698,2]
[339728821,1727904647219,-500.0,0.00013698,2]
[339728822,1727904647229,-500.0,0.00013698,2]
[339728823,1727904647238,-500.0,0.00013698,2]
[339728824,1727904647248,-188.18893931,0.00013698,2]
[339728825,1727904647257,-500.0,0.00013698,2]
[339728826,1727904647267,-766.74,0.00013698,2]
[339728827,1727904647276,-500.0,0.00013698,2]
[339728828,1727904647286,-516.7,0.00013698,2]
[339728829,1727904647296,-500.0,0.00013698,2]
[339728830,1727904647305,-500.0,0.00013698,2]
[339728831,1727904647314,-500.0,0.00013698,2]
[339728832,1727904647324,-744.96,0.00013698,2]
[339728833,1727904647333,-500.0,0.00013698,2]
[339728834,1727904647343,-500.0,0.00013698,2]
[339728835,1727904647352,-443.83731871,0.00013698,2]
[339728836,1727904655725,742.85,0.00010959,2]
[339728837,1727904666263,619.04,0.00010959,2]
[339728838,1727904676850,515.87,0.00010959,2]
[339728839,1727904687613,429.89,0.00010959,2]
[339728840,1727904698179,358.24,0.00010959,2]
[339728850,1727904708742,298.54,0.00010959,2]
[339728858,1727904719343,248.78,0.00010959,2]
[339728859,1727904729862,207.32,0.00010959,2]
[339728860,1727904740417,172.76,0.00010959,2]
[339729008,1727905613884,792.1075755,9.552e-05,2]
[339729009,1727905630173,-302.77258742,0.0001021,2]
[339729010,1727905630198,-300.0,0.00010265,2]
[339729011,1727905630223,-300.0,0.00010265,2]
[339729012,1727905630247,-5416.52154958,0.00010266,2]
[339729013,1727905634211,-19483.47845042,0.00010266,2]
[339729014,1727905634237,-688.08,0.0001031,2]
[339729015,1727905634263,-2865.5940309,0.00010394,2]
[339729016,1727905634285,-600.0,0.0001041,2]
[339729017,1727905634306,-863.84,0.00010959,2]
[339729018,1727905634329,-491.91953022,0.00010973,2]
[339729019,1727905634351,-250.0,0.00010983,2]
[339729020,1727905634373,-250.0,0.00011013,2]
[339729021,1727905634395,-250.0,0.00011043,2]
[339729022,1727905634416,-369.837,0.00011054,2]
[339729023,1727905634438,-250.0,0.00011073,2]
[339729024,1727905634460,-1136.84025972,0.00011073,2]
[339729025,1727905634486,-250.0,0.00011103,2]
[339729026,1727905634512,-250.0,0.00011134,2]
[339729027,1727905634535,-250.0,0.00011164,2]
[339729028,1727905634563,-250.0,0.00011194,2]
[339729029,1727905634587,-250.0,0.00011224,2]
[339729030,1727905634609,-250.0,0.00011254,2]
[339729031,1727905634632,-250.0,0.00011284,2]
[339729032,1727905634655,-420.0,0.00011288,2]
[339729033,1727905634678,-420.0,0.00011291,2]
[339729034,1727905634701,-250.0,0.00011314,2]
[339729035,1727905634724,-250.0,0.00011344,2]
[339729036,1727905634746,-250.0,0.00011374,2]
[339729037,1727905634770,-250.0,0.00011405,2]
[339729038,1727905634795,-250.0,0.00011435,2]
[339729039,1727905634819,-250.0,0.00011465,2]
[339729040,1727905635070,-250.0,0.00011495,2]
[339729041,1727905635094,-250.0,0.00011525,2]
[339729042,1727905635117,-250.0,0.00011555,2]
[339729043,1727905635140,-600.0,0.0001178,2]
[339729044,1727905635167,-250.0,0.00012335,2]
[339729045,1727905635188,-587.0,0.00012414,2]
[339729046,1727905635212,-587.0,0.0001242,2]
[339729047,1727905635234,-412.701024,0.00012878,2]
[339729048,1727905635258,-5580.27242025,0.000129,2]
[339729049,1727905635281,-714.343372,0.0001292,2]
[339729050,1727905635302,-412.701024,0.00012978,2]
[339729051,1727905635322,-600.0,0.0001315,2]
[339729052,1727905635344,-193.26981215,0.00013478,2]
[339729053,1727905635367,-251.48149109,0.00013568,2]
[339729054,1727905635387,-1000.0,0.00013568,2]
[339729055,1727905635409,-172.26889639,0.00013573,2]
[339729056,1727905635430,-177.533,0.00013573,2]
[339729057,1727905635456,-251.48149108,0.00013576,2]
[339729058,1727905635476,-251.48149108,0.00013583,2]
[339729059,1727905635496,-251.48149108,0.00013591,2]
[339729060,1727905635518,-1135.68109371,0.00013598,2]
[339729061,1727905635538,-251.48149108,0.00013598,2]
[339729062,1727905635558,-1000.0,0.000136,2]
[339729063,1727905635579,-151.0,0.000136,2]
[339729064,1727905635601,-150.112233,0.000136,2]
[339729065,1727905635624,-7194.09562255,0.00013613,2]
[339729066,1727905635644,-153.0,0.00013629,2]
[339729067,1727905635665,-1000.0,0.00013643,2]
[339729068,1727905635686,-823.0,0.00013652,2]
[339729069,1727905635707,-658.0,0.00013662,2]
[339729070,1727905635728,-49471.71910891,0.00013668,2]
[339729071,1727905640095,-1463.70391528,0.000129,2]
[339729072,1727905640129,-4116.56850492,0.000129,2]
[339729073,1727905640156,-17862.21518363,0.00013668,2]
[339729075,1727905754112,-500.0,0.00011506,2]
[339729076,1727905811639,500.0,0.00011506,2]
[339729100,1727905831875,-500.0,0.00012876,2]
[339729102,1727905831885,-1022.11298433,0.00013597,2]
[339729104,1727905831894,-300.0,0.00013672,2]
[339729106,1727905831904,-500.0,0.00013673,2]
[339729108,1727905831915,-507.63970588,0.00013673,2]
[339729110,1727905831924,-500.0,0.00013673,2]
[339729112,1727905831934,-300.0,0.00013687,2]
[339729114,1727905831943,-105168.89204098,0.00013688,2]
[339729116,1727905831955,-6171.01572855,0.00013688,2]
[339729123,1727905832014,-2442.0870765,0.00013688,2]
[339729261,1727905837996,-327.94635348,0.00013688,2]
[339729262,1727905838007,-151567.98992697,0.00013688,2]
[339729263,1727905838018,-175836.33670292,0.00013688,2]
[339729275,1727905839809,-6277.39443333,0.00013688,2]
[339729276,1727905839822,-2119.41837599,0.00013688,2]
[339729277,1727905839834,-19164.95993304,0.00013688,2]
[339729278,1727905839847,-6312.05885447,0.00013688,2]
[339729279,1727905839859,-43146.37428111,0.00013688,2]
[339729307,1727905842903,-88412.64588014,0.00013688,2]
[339729308,1727905842913,-150.01,0.00013697,2]
[339729309,1727905842927,-7386.95154714,0.00013697,2]
[339729310,1727905842936,-59715.32856362,0.00013698,2]
[339729311,1727905842946,-13488.11965024,0.00013698,2]
[339729313,1727905843000,-455.5813305,0.00013698,2]
[339729316,1727905843575,240.87,0.00010959,2]
[339729324,1727905846377,-500.27468397,0.00013673,2]
[339729325,1727905846387,-8603.9408912,0.00013698,2]
[339729326,1727905846396,-151.0,0.00013698,2]
[339729327,1727905846405,-151.0,0.00013698,2]
[339729328,1727905846415,-500.0,0.00013698,2]
[339729329,1727905846425,-500.0,0.00013698,2]
[339729330,1727905846434,-500.0,0.00013698,2]
[339729331,1727905846444,-500.0,0.00013698,2]
[339729332,1727905846453,-151.0,0.00013698,2]
[339729333,1727905846462,-151.0,0.00013698,2]
[339729334,1727905846471,-500.0,0.00013698,2]
[339729335,1727905846481,-500.0,0.00013698,2]
[339729336,1727905846490,-500.0,0.00013698,2]
[339729337,1727905846500,-500.0,0.00013698,2]
[339729338,1727905846509,-500.0,0.00013698,2]
[339729339,1727905846519,-500.0,0.00013698,2]
[339729340,1727905846719,-501.6499581,0.00013698,2]
[339729341,1727905846731,-640.43,0.00013698,2]
[339729342,1727905846741,-151.0,0.00013698,2]
[339729343,1727905846750,-151.0,0.00013698,2]
[339729344,1727905846760,-500.0,0.00013698,2]
[339729345,1727905846769,-429.78615379,0.00013698,2]
[339729346,1727905846779,-500.0,0.00013698,2]
[339729347,1727905846788,-500.0,0.00013698,2]
[339729348,1727905846798,-500.0,0.00013698,2]
[339729349,1727905846807,-719.01,0.00013698,2]
[339729350,1727905846817,-500.0,0.00013698,2]
[339729351,1727905846827,-500.0,0.00013698,2]
[339729352,1727905846837,-500.0,0.00013698,2]
[339729353,1727905846846,-500.0,0.00013698,2]
[339729354,1727905846856,-500.0,0.00013698,2]
[339729355,1727905846866,-500.0,0.00013698,2]
[339729356,1727905846876,-715.92,0.00013698,2]
[339729357,1727905846885,-500.0,0.00013698,2]
[339729358,1727905846894,-500.0,0.00013698,2]
[339729359,1727905846904,-556.57,0.00013698,2]
[339729360,1727905846914,-500.0,0.00013698,2]
[339729361,1727905846924,-506.35,0.00013698,2]
[339729362,1727905846934,-500.0,0.00013698,2]
[339729363,1727905846943,-500.0,0.00013698,2]
[339729364,1727905846953,-500.0,0.00013698,2]
[339729365,1727905846962,-504.26,0.00013698,2]
[339729366,1727905846971,-500.0,0.00013698,2]
[339729367,1727905846981,-507.39,0.00013698,2]
[339729368,1727905846990,-151.0,0.00013698,2]
[339729369,1727905847000,-151.0,0.00013698,2]
[339729370,1727905847009,-500.0,0.00013698,2]
[339729371,1727905847018,-151.0,0.00013698,2]
[339729372,1727905847028,-822.47,0.00013698,2]
[339729373,1727905847038,-151.0,0.00013698,2]
[339729374,1727905847047,-500.0,0.00013698,2]
[339729375,1727905847056,-500.0,0.00013698,2]
[339729376,1727905847066,-151.0,0.00013698,2]
[339729377,1727905847075,-151.0,0.00013698,2]
[339729378,1727905847084,-500.0,0.00013698,2]
[339729379,1727905847093,-600.66,0.00013698,2]
[339729380,1727905847103,-500.0,0.00013698,2]
[339729381,1727905847113,-500.0,0.00013698,2]
[339729382,1727905847122,-500.0,0.00013698,2]
[339729383,1727905847132,-500.0,0.00013698,2]
[339729384,1727905847141,-500.0,0.00013698,2]
[339729385,1727905847150,-500.0,0.00013698,2]
[339729386,1727905847160,-500.0,0.00013698,2]
[339729387,1727905847169,-500.0,0.00013698,2]
[339729388,1727905847178,-1027.76,0.00013698,2]
[339729389,1727905847187,-500.0,0.00013698,2]
[339729390,1727905847197,-500.0,0.00013698,2]
[339729391,1727905847207,-500.0,0.00013698,2]
[339729392,1727905847217,-622.51,0.00013698,2]
[339729393,1727905847228,-500.0,0.00013698,2]
[339729394,1727905847238,-500.0,0.00013698,2]
[339729395,1727905847248,-344.1602322,0.00013698,2]
[339729396,1727905847258,-500.0,0.00013698,2]
[339729397,1727905847267,-500.0,0.00013698,2]
[339729398,1727905847278,-500.0,0.00013698,2]
[339729399,1727905847287,-1563.58,0.00013698,2]
[339729400,1727905847300,-500.0,0.00013698,2]
[339729401,1727905847311,-500.0,0.00013698,2]
[339729402,1727905847320,-455.409965,0.00013698,2]
[339729403,1727905847330,-585.91,0.00013698,2]
[339729404,1727905847343,-648.75,0.00013698,2]
[339729405,1727905847352,-455.409965,0.00013698,2]
[339729406,1727905847374,-500.0,0.00013698,2]
[339729407,1727905847400,-500.0,0.00013698,2]
[339729408,1727905847436,-151.0,0.00013698,2]
[339729409,1727905847480,-151.0,0.00013698,2]
[339729410,1727905847519,-151.0,0.00013698,2]
[339729411,1727905847529,-500.0,0.00013698,2]
[339729412,1727905847539,-151.0,0.00013698,2]
[339729413,1727905847548,-500.0,0.00013698,2]
[339729414,1727905847557,-206.339551,0.00013698,2]
[339729415,1727905847567,-500.0,0.00013698,2]
[339729416,1727905847577,-500.0,0.00013698,2]
[339729417,1727905847586,-500.0,0.00013698,2]
[339729418,1727905847595,-500.0,0.00013698,2]
[339729419,1727905847605,-500.0,0.00013698,2]
[339729420,1727905847615,-500.0,0.00013698,2]
[339729421,1727905847625,-500.0,0.00013698,2]
[339729422,1727905847634,-640.32,0.00013698,2]
[339729423,1727905847643,-546.25,0.00013698,2]
[339729424,1727905847653,-500.0,0.00013698,2]
[339729425,1727905847662,-500.0,0.00013698,2]
[339729426,1727905847672,-500.0,0.00013698,2]
[339729427,1727905847681,-500.0,0.00013698,2]
[339729428,1727905847690,-931.09,0.00013698,2]
[339729429,1727905847700,-500.0,0.00013698,2]
[339729430,1727905847709,-151.0,0.00013698,2]
[339729431,1727905847718,-1707.85,0.00013698,2]
[339729432,1727905847727,-500.0,0.00013698,2]
[339729433,1727905847737,-151.0,0.00013698,2]
[339729434,1727905847746,-500.0,0.00013698,2]
[339729435,1727905847757,-500.0,0.00013698,2]
[339729436,1727905847766,-500.0,0.00013698,2]
[339729437,1727905847776,-1182.687213,0.00013698,2]
[339729438,1727905847785,-501.65,0.00013698,2]
[339729439,1727905847795,-500.0,0.00013698,2]
[339729440,1727905847804,-172.41961798,0.00013698,2]
[339729441,1727905847814,-1182.687213,0.00013698,2]
[339729442,1727905847824,-500.0,0.00013698,2]
[339729443,1727905847833,-224.49839184,0.00013698,2]
[339729444,1727905847843,-151.0,0.00013698,2]
[339729445,1727905847852,-500.0,0.00013698,2]
[339729446,1727905847862,-735.42,0.00013698,2]
[339729447,1727905847872,-744.96,0.00013698,2]
[339729448,1727905847881,-500.0,0.00013698,2]
[339729449,1727905847891,-500.0,0.00013698,2]
[339729450,1727905847901,-723.23,0.00013698,2]
[339729451,1727905847910,-500.0,0.00013698,2]
[339729452,1727905847919,-151.0,0.00013698,2]
[339729453,1727905847929,-500.0,0.00013698,2]
[339729454,1727905847938,-500.0,0.00013698,2]
[339729455,1727905847948,-500.0,0.00013698,2]
[339729456,1727905847957,-500.0,0.00013698,2]
[339729457,1727905847967,-500.0,0.00013698,2]
[339729458,1727905847976,-488.73996641,0.00013698,2]
[339729459,1727905847985,-500.0,0.00013698,2]
[339729460,1727905847995,-500.0,0.00013698,2]
[339729461,1727905848004,-500.0,0.00013698,2]
[339729462,1727905848013,-500.0,0.00013698,2]
[339729463,1727905848023,-610.03,0.00013698,2]
[339729464,1727905848032,-500.0,0.00013698,2]
[339729465,1727905848041,-500.0,0.00013698,2]
[339729466,1727905848050,-500.0,0.00013698,2]
[339729467,1727905848059,-500.0,0.00013698,2]
[339729468,1727905848068,-703.81,0.00013698,2]
[339729469,1727905848078,-500.0,0.00013698,2]
[339729470,1727905848087,-500.0,0.00013698,2]